Cogmind - Beta 16 @@@ ROGUE MODE // 2025.11.12 @ 12:20:49 Player: Anting Result: Self-destructed Performance ------------- Evolutions (9) 4500 Regions Visited (24) 4800 Robots Destroyed (68) 340 Value Destroyed (3683) 3683 Prototype IDs (46) 920 Alien Tech Used (3) 600 Bonus (20374) 20374 TOTAL SCORE: 35217 Bonus ------- Pacifist 1055 Follower Combat Kills 4040 Entered DSFs 500 Met Zhirov 300 Met Warlord at Base 500 MAIN.C Attacked Warlord 500 Warlord Defense Kills 120 Built Enhanced Grunts 300 Met R17 at Cetus 500 Used Core Reset Matrix 3000 Met R17 at Research 2000 Met Warlord at Research 2000 Destroyed MAIN.C Guards 500 Met MAIN.C 5000 Met Warlord at Command 2000 Friendly Fire -1941 Cogmind --------- Core Integrity 1343/1600 Matter 151/300 Energy 100/100 System Corruption 17% Temperature Cool (9) Movement Walking (120) Location -1/Command Parts ------- > --- POWER (2) -------- (None) > --- PROPULSION (5) --- Biometal Leg Centrium Leg High-density Centrium Leg High-density Centrium Leg > --- UTILITY (12) ----- Experimental Cooling System Advanced Coolant Injector Large Storage Unit Centrium Medium Armor Plating Advanced Point Defense System Hacking Suite > --- WEAPON (6) ------- Graviton Cannon (fused) > --- INVENTORY (15) --- Centrium Leg Centrium Leg Centrium Leg Transdimensional Reconstructor Subatomic Replicator Hellfire Missile Launcher Core Stripper Peak State ------------ > --- POWER ------------ Vortex Chain Reactor > --- PROPULSION ------- Biometal Leg Biometal Leg Centrium Leg High-density Centrium Leg High-density Centrium Leg > --- UTILITY ---------- Large Storage Unit Centrium Medium Armor Plating Advanced Force Field Advanced Point Defense System Wardrone Bay > --- WEAPON ----------- Nova Cannon Tiamat Missile Launcher Improved Remote Datajack Core Stripper > --- INVENTORY -------- Centrium Leg Centrium Leg Centrium Leg Advanced Coolant Injector Hacking Suite Transdimensional Reconstructor Subatomic Replicator BFG-9k Vortex Edition [Rating: 258] Favorites ----------- Power Compact Particle Reactor Engine Light Angular Momentum Engine Power Core Light Nuclear Core Reactor Compact Particle Reactor Propulsion Myomer Leg Treads Light Treads Leg Myomer Leg Hover Unit Gravmag System Flight Unit Impulse Thruster Utility Improved Hacking Suite Device Wardrone Bay Storage Medium Storage Unit Processor Advanced Signal Interpreter Hackware Improved Hacking Suite Protection Medium Regenerative Plating Weapon Tiamat Missile Launcher Energy Gun Medium Laser Energy Cannon Nova Cannon Ballistic Gun Autogun Ballistic Cannon Heavy Hardcell Cannon Launcher Tiamat Missile Launcher Special Weapon Improved Remote Datajack Impact Weapon Core Stripper Slashing Weapon Great Axe Build | -11 -10 -10 -8 -7 -7 -6 -6 -6 -6 -5 -5 -5 -5 -4 -4 -4 -4 -4 -3 -3 -2 -2 -1 -1 ------- Run | Yrd Mat Sub Mat Fac DSF Fac Ext Cet Arc Fac Upp Upp Zhi Pro Fac Upp Upp War Pro Res Res Qua Acc Com Slots Evolved 18 | . . . 4 2 . 2 . . . 2 . . . . 2 . . . . 2 2 . 2 . Power 1 | . . . . . . . . . . . . . . . . . . . . 1 . . . . Propulsion 3 | . . . 2 . . 1 . . . . . . . . . . . . . . . . . . Utility 10 | . . . 2 2 . 1 . . . 2 . . . . 2 . . . . 1 . . . . Weapon 4 | . . . . . . . . . . . . . . . . . . . . . 2 . 2 . Parts Attached 137 | 4 . . 4 1 . 9 18 5 12 6 2 . 3 3 9 6 2 16 . 8 7 6 9 7 Power 5 | . . . . . . 1 . 2 . . . . 1 . . . . . . 1 . . . . Engine 1 | . . . . . . . . 1 . . . . . . . . . . . . . . . . Core 1 | . . . . . . 1 . . . . . . . . . . . . . . . . . . Reactor 3 | . . . . . . . . 1 . . . . 1 . . . . . . 1 . . . . Propulsion 54 | 2 . . 2 1 . 3 5 . 6 . 1 . 1 1 7 . . 11 . 4 5 2 3 . Treads 2 | 2 . . . . . . . . . . . . . . . . . . . . . . . . Leg 26 | . . . 2 . . . . . . . . . . . . . . 10 . 4 5 2 3 . Wheel . | . . . . . . . . . . . . . . . . . . . . . . . . . Hover 11 | . . . . . . 1 . . 6 . 1 . 1 . 2 . . . . . . . . . Flight 15 | . . . . 1 . 2 5 . . . . . . 1 5 . . 1 . . . . . . Utility 56 | . . . 2 . . 3 9 2 5 5 1 . 1 2 2 4 1 4 . 2 . 3 5 5 Device 27 | . . . . . . 1 3 1 2 3 . . . 1 1 2 1 4 . 1 . 1 4 2 Storage 2 | . . . . . . . 1 . . . . . . . . . . . . 1 . . . . Processor 9 | . . . 1 . . 1 3 . . 1 . . . 1 . 2 . . . . . . . . Hackware 7 | . . . . . . . 1 . 1 1 . . . . 1 . . . . . . . 1 2 Protection 11 | . . . 1 . . 1 1 1 2 . 1 . 1 . . . . . . . . 2 . 1 Artifact . | . . . . . . . . . . . . . . . . . . . . . . . . . Weapon 22 | 2 . . . . . 2 4 1 1 1 . . . . . 2 1 1 . 1 2 1 1 2 Energy Gun 4 | 2 . . . . . . . . . . . . . . . 2 . . . . . . . . Energy Cannon 6 | . . . . . . . 1 . 1 . . . . . . . . 1 . 1 1 . . 1 Ballistic Gun 4 | . . . . . . 2 1 . . . . . . . . . 1 . . . . . . . Ballistic Cannon 3 | . . . . . . . 1 . . . . . . . . . . . . . 1 . . 1 Launcher 2 | . . . . . . . . 1 . 1 . . . . . . . . . . . . . . Special Weapon 1 | . . . . . . . . . . . . . . . . . . . . . . . 1 . Impact Weapon 1 | . . . . . . . . . . . . . . . . . . . . . . 1 . . Slashing Weapon 1 | . . . . . . . 1 . . . . . . . . . . . . . . . . . Piercing Weapon . | . . . . . . . . . . . . . . . . . . . . . . . . . Special Melee Weapon . | . . . . . . . . . . . . . . . . . . . . . . . . . Unidentified Prototypes 27 | . . . . 1 . 1 . 3 2 2 . . 3 . . . . 5 . 1 1 4 1 3 Parts Lost 29 | . . . . . 2 2 8 1 2 . 3 . . . 4 . . . . . . . . 7 Power 1 | . . . . . . . . . . . . . . . . . . . . . . . . 1 Propulsion 16 | . . . . . 1 1 6 . 1 . 3 . . . 3 . . . . . . . . 1 Utility 6 | . . . . . . 1 2 . 1 . . . . . . . . . . . . . . 2 Weapon 6 | . . . . . 1 . . 1 . . . . . . 1 . . . . . . . . 3 Highest Loss Streak 8 | . . . . . 2 2 8 1 2 . 2 . . . 4 . . . . . . . . 4 To Critical Strikes 1 | . . . . . . . . . . . 1 . . . . . . . . . . . . . Average Backups 8 | 1 4 4 3 4 4 4 7 8 9 9 9 10 10 10 8 10 9 5 4 8 10 9 10 8 Power . | . 1 . . . . . 1 1 2 2 2 2 1 1 1 1 1 . 1 1 . . . . Propulsion 1 | . 2 2 . 1 1 . 1 . . . . . . . . 3 2 1 . 2 3 3 2 2 Utility 3 | . 1 1 2 3 3 2 1 4 5 5 5 5 5 6 4 4 4 2 1 1 2 4 4 2 Weapon 1 | . . . . . . . 4 2 1 . 2 3 2 1 1 . 1 . 1 2 2 1 1 1 Tool/Special . | . . . . . . . . . . . . . . . . . . . . . . . . . Unused Backups 32 | . 1 1 . . . . 5 . 1 1 . . 3 . . . . 11 . 1 1 1 . 6 Power 5 | . . 1 . . . . 2 . . . . . 1 . . . . 1 . . . . . . Propulsion 12 | . . . . . . . . . . . . . . . . . . 8 . 1 . . . 3 Utility 6 | . 1 . . . . . . . 1 . . . 1 . . . . 2 . . . 1 . . Weapon 6 | . . . . . . . 3 . . . . . 1 . . . . . . . 1 . . 1 Tool/Special 3 | . . . . . . . . . . 1 . . . . . . . . . . . . . 2 Average Slot Usage (%) 71 | . 57 57 58 50 40 30 68 58 74 95 92 82 83 96 95 93 94 88 63 59 59 59 59 57 Reactor 3 | . . . . . . . . 2 6 5 5 5 5 5 5 5 5 5 5 4 4 4 4 4 Treads 1 | . 28 28 18 15 10 . . . . . . . . . . . . . . . . . . . Leg 9 | . . . 17 12 8 . . . . . . . . . . . . 4 26 23 21 21 20 19 Hover 4 | . . . . . . 4 . . 13 29 22 17 18 23 20 . . . . . . . . . Flight 6 | . . . . . . 4 22 6 1 . . . . 3 3 26 26 20 . . . . . . Device 9 | . . . . . . 5 4 10 10 12 16 17 16 16 13 13 15 13 5 7 8 7 8 10 Storage 4 | . . . . . . . 3 4 6 5 5 5 5 5 5 5 5 5 5 4 4 4 4 4 Processor 5 | . . . 5 7 7 7 22 20 18 11 11 11 11 11 10 5 5 4 . . . . . . Hackware 7 | . . . . . . . 4 3 . 8 11 11 11 11 14 15 15 13 5 4 4 4 7 3 Protection 5 | . . . . . . 5 . 4 7 8 5 5 5 5 10 14 15 13 5 4 4 3 . 3 Energy Gun 1 | . 28 28 18 15 12 . . . . . . . . . . . . . . . . . . . Energy Cannon 3 | . . . . . . . . . 1 4 4 . . 3 4 5 3 5 5 4 4 4 4 3 Launcher 1 | . . . . . . . . . . . . . . . . . 1 . 5 4 4 4 4 2 Slashing Weapon 1 | . . . . . . . 3 3 6 5 5 5 5 5 3 . . . . . . . . . Peak Build Rating 258 | 4 4 4 10 12 10 27 48 58 87 95 95 75 79 90 115 127 125 188 188 211 231 250 257 258 Average Rating 138 | 2 4 4 8 10 7 18 33 43 64 89 85 75 75 86 104 119 119 128 188 206 228 236 255 231 On Entrance 92 | . 4 4 4 10 10 4 23 24 56 87 89 75 75 79 90 115 119 119 188 188 211 231 250 257 Avg Prop Armor Cover (%) 18 | 29 29 29 35 35 31 18 . 4 3 17 . . . 2 2 . . 7 . . . . . 2 Naked Turns . | . . . . . . . . . . . . . . . . . . . . . . . . . Heaviest Build 169 | 3 3 3 3 3 3 10 21 40 49 53 52 37 37 47 50 57 51 105 105 153 169 169 158 166 Greatest Support 150 | 20 3 3 3 3 3 13 21 19 61 61 61 44 52 52 64 52 52 125 125 125 131 145 150 150 Greatest Overweight (x) 7 | . . . . . . . . 7 2 2 1 . . . 1 1 . 2 . 1 1 1 1 1 Average Overweight (x) . | . . . . . . . . 1 . . . . . . . . . . . . 1 1 . . Largest Inventory Capacity 15 | 5 5 5 5 5 5 5 10 10 10 10 10 10 10 10 10 10 10 10 10 15 15 15 15 15 Average Capacity 11 | 5 5 5 5 5 5 5 7 9 10 10 10 10 10 10 10 10 10 10 10 13 15 15 15 15 Most Carried 15 | 4 4 5 4 4 5 5 10 10 10 10 10 10 10 10 10 10 10 10 10 15 15 15 15 15 Average Carried 10 | 1 4 4 3 3 4 4 7 8 9 9 9 10 9 9 8 9 9 7 10 13 14 14 14 12 Final Capacity 15 | 5 5 5 5 5 5 5 5 10 10 10 10 10 10 10 10 10 10 10 10 15 15 15 15 15 Final Carried 15 | 4 4 5 4 4 5 5 5 10 10 10 10 10 10 10 10 10 10 10 10 15 15 15 15 8 Class Distribution -------------------- 35% | Scavenger-Mutant 15% | Hacker-Sprinter 14% | Scavenger-Tank 13% | Mutant 4% | Hacker-Bomber 3% | Scavenger-Sprinter 3% | Alien-Mutant Dominant Class ---------------- Mutant | -10/Materials Mutant | -10/Subcaves Mutant | -8/Materials Mutant | -7/Factory Mutant | -7/DSF Mutant | -6/Factory Scavenger-Sprinter | -6/Extension Mutant | -6/Cetus Scavenger-Mutant | -6/Archives Scavenger-Mutant | -5/Factory Scavenger-Mutant | -5/Upper Caves Scavenger-Mutant | -5/Upper Caves Scavenger-Mutant | -5/Zhirov Scavenger-Mutant | -4/Proximity Caves Scavenger-Mutant | -4/Factory Hacker-Sprinter | -4/Upper Caves Hacker-Sprinter | -4/Upper Caves Hacker-Sprinter | -4/Warlord Scavenger-Mutant | -3/Proximity Caves Scavenger-Mutant | -3/Research Scavenger-Tank | -2/Research Scavenger-Tank | -2/Quarantine Hacker-Bomber | -1/Access Alien-Bomber | -1/Command Resources | -11 -10 -10 -8 -7 -7 -6 -6 -6 -6 -5 -5 -5 -5 -4 -4 -4 -4 -4 -3 -3 -2 -2 -1 -1 ----------- Run | Yrd Mat Sub Mat Fac DSF Fac Ext Cet Arc Fac Upp Upp Zhi Pro Fac Upp Upp War Pro Res Res Qua Acc Com Matter Collected 2854 | 214 . . 62 . . 32 294 113 162 . 138 . 70 85 83 254 280 245 25 72 323 215 146 41 Remotely . | . . . . . . . . . . . . . . . . . . . . . . . . . Salvage Created 2867 | . . . . . . . 341 138 344 23 112 158 105 76 162 23 265 59 . . 339 636 86 . Parts 130 | . . . . . . . 21 7 26 1 2 5 3 7 9 1 4 1 . . 11 32 . . Haulers Intercepted 3 | . . . . . . . 1 . . . . . . . . . 1 . . . 1 . . . Recyclers Shooed 1 | . . . . . . . . . . . . . . . . . . . . . . . . 1 Parts Field Recycled . | . . . . . . . . . . . . . . . . . . . . . . . . . Retrieved Matter . | . . . . . . . . . . . . . . . . . . . . . . . . . Parts Self-Destructed 54 | . . 5 . . . . . . . . 2 . . 2 . 15 7 . 23 . . . . . Prevented . | . . . . . . . . . . . . . . . . . . . . . . . . . Parts Restored . | . . . . . . . . . . . . . . . . . . . . . . . . . Kills | -11 -10 -10 -8 -7 -7 -6 -6 -6 -6 -5 -5 -5 -5 -4 -4 -4 -4 -4 -3 -3 -2 -2 -1 -1 ------- Run | Yrd Mat Sub Mat Fac DSF Fac Ext Cet Arc Fac Upp Upp Zhi Pro Fac Upp Upp War Pro Res Res Qua Acc Com Combat Hostiles Destroyed 46 | . . . . . . . 6 . 1 1 2 . . 4 2 . 5 1 1 . 8 12 1 2 Melee 4 | . . . . . . . 2 . . . 1 . . . . . . . . . . 1 . . Guns 2 | . . . . . . . 2 . . . . . . . . . . . . . . . . . Cannons 16 | . . . . . . . 2 . 1 . . . . . 2 . . . 1 . 3 5 . 2 AOE 20 | . . . . . . . . . . 1 . . . 4 . . 5 1 . . 5 4 . . Classes Destroyed 12 | . . . . . . . 5 1 1 1 1 2 . . . . . . . . . 1 . . Worker 2 | . . . . . . . . . . 1 . . . . . . . . . . . 1 . . Hauler 3 | . . . . . . . 1 . . . . . . . . . 1 . . . 1 . . . Minesweeper 3 | . . . . . . . . . . . . 1 . 1 . 1 . . . . . . . . Operator 9 | . . . . . . . 1 . 8 . . . . . . . . . . . . . . . Watcher 2 | . . . . . . . 1 . . . . . . . 1 . . . . . . . . . Swarmer 18 | . . . . . . . 4 . . 1 . . . 4 . . . . . . 5 4 . . Grunt 11 | . . . . . . . 2 . . . . . . . . . 5 . . . 2 2 . . Brawler 1 | . . . . . . . . . . . . . . . . . . 1 . . . . . . Sentry 3 | . . . . . . . . . 1 . . . . . 1 . . . . . . . 1 . Programmer 10 | . . . . . . . . . . . 2 . . . 1 . . . 1 . 1 5 . . M Guard 1 | . . . . . . . . . . . . . . . . . . . . . . . . 1 Combat Programmer 1 | . . . . . . . . . . . . . . . . . . . . . . . . 1 Alpha 7 1 | . . . . . . . . . . . . . . . . . . . . . . 1 . . Savage 1 | . . . . . . . . . . . . 1 . . . . . . . . . . . . Butcher 1 | . . . . . . . . 1 . . . . . . . . . . . . . . . . Best Kill Streak 5 | . . . . . . . 3 . 5 2 1 1 . 4 2 1 3 1 1 . 5 4 1 1 Combat Bots Only 5 | . . . . . . . 3 . 1 1 1 . . 4 2 . 3 1 1 . 5 4 1 1 Max Kills in Single Turn 4 | . . . . . . . 1 1 1 2 1 1 . 4 1 1 1 1 1 . 3 4 1 1 Gunslinging . | . . . . . . . . . . . . . . . . . . . . . . . . . Exploded 4 | . . . . . . . . . . 1 . . . 4 . . 1 1 . . 3 4 . . Melee 1 | . . . . . . . 1 . . . 1 . . . . . . . . . . 1 . . Uniques/NPCs Destroyed 1 | . . . . . . . . 1 . . . . . . . . . . . . . . . . A7 (-6/Cetus) Combat | -11 -10 -10 -8 -7 -7 -6 -6 -6 -6 -5 -5 -5 -5 -4 -4 -4 -4 -4 -3 -3 -2 -2 -1 -1 -------- Run | Yrd Mat Sub Mat Fac DSF Fac Ext Cet Arc Fac Upp Upp Zhi Pro Fac Upp Upp War Pro Res Res Qua Acc Com Hostile Shots Fired 603 | . . 8 31 . 18 22 107 19 6 4 31 . . 1 29 7 6 17 25 37 39 47 73 76 Missed 204 | . . 5 10 . 4 10 45 7 . 1 15 . . 1 9 5 5 5 7 8 9 11 26 21 Intercepted 6 | . . . . . . . . . . . . . . . . . . . . . . . . 6 Hits 399 | . . 3 21 . 14 12 62 12 6 3 16 . . . 20 2 1 12 18 29 30 36 47 55 Melee 11 | . . . . . 8 . . . . . . . . . . . . . . 2 1 . . . Projectile 388 | . . 3 21 . 6 12 62 12 6 3 16 . . . 20 2 1 12 18 27 29 36 47 55 AOE 7 | . . . . . 1 . . . . . . . . . . . . 2 . . . . . 4 Critical Strikes 27 | . . . 1 . 6 . 2 3 . . 2 . . . 1 . . 1 . 1 2 2 1 5 Part Disruptions 12 | . . . . . . . . . . . . . . . . . . . . . . . . 12 Actively Blocked 1 | . . . . . . . . . . . . . . . . . . . . . . . . 1 Damage Taken 8456 | . . 45 360 . 429 519 694 363 143 74 304 . . . 444 37 97 315 395 569 357 459 719 2133 Core 1517 | . . . 108 . 203 327 233 103 72 22 . . . . 22 . 39 . 47 73 11 . 48 209 Absorbed by Shields 1793 | . . . . . . . 14 6 . . . . . . . . . . . 360 367 361 470 215 Redirected to Shielding 236 | . . . . . . 66 . . . . . . . . . . 35 45 . . . . . 90 Regen/Repaired (Parts) 404 | . . . . . . . . . . 1 106 . . . . 206 . 45 13 . 20 13 . . Core Remaining (%) 82 | 100 . 100 80 . 71 . . . 13 . . . . 97 . . . . 90 94 . 99 . . Volleys Fired 245 | . . . . . . . 8 7 6 5 7 . . 2 14 24 24 21 11 18 25 15 34 24 Largest 2 | . . . . . . . 2 1 1 1 1 . . 1 1 1 1 1 1 1 2 2 1 2 Hottest 300 | . . . . . . . 67 36 90 90 90 . . 90 90 94 90 90 100 113 181 181 113 300 Shots Fired 273 | . . . . . . . 12 7 6 5 8 . . 3 14 23 26 21 11 18 36 23 34 26 Gun 20 | . . . . . . . 8 . . . . . . . . 12 . . . . . . . . Cannon 229 | . . . . . . . 4 . 6 5 8 . . 2 14 11 15 21 11 18 34 22 33 25 Launcher 23 | . . . . . . . . 7 . . . . . 1 . . 11 . . . 2 1 . 1 Special 1 | . . . . . . . . . . . . . . . . . . . . . . . 1 . Kinetic 44 | . . . . . . . 12 . . . . . . . . . . . . . 15 10 . 7 Thermal 180 | . . . . . . . . . 6 5 8 . . 2 14 23 15 21 . 18 19 12 33 4 Explosive 16 | . . . . . . . . . . . . . . 1 . . 11 . . . 2 1 . 1 Electromagnetic 7 | . . . . . . . . 7 . . . . . . . . . . . . . . . . Entropic 25 | . . . . . . . . . . . . . . . . . . . 11 . . . . 14 Robot Hit Streak 15 | . . . . . . . 4 . 1 . . . . 1 3 6 11 15 3 . 4 5 4 12 Robot Miss Streak 4 | . . . . . . . 4 1 1 2 . . . . 1 3 . . 1 1 4 1 1 1 Penetration Max . | . . . . . . . . . . . . . . . . . . . . . . . . . Secondary Targets . | . . . . . . . . . . . . . . . . . . . . . . . . . Shots Hit Robots 151 | . . . . . . . 17 6 12 . 8 5 2 5 12 9 5 4 7 . 15 15 10 19 Core Hits 101 | . . . . . . . 14 10 5 3 2 2 1 4 6 2 19 4 1 . 10 12 1 5 Critical Kills 1 | . . . . . . . . . . . . . . . . . . . . . . 1 . . Critical Parts Destroyed . | . . . . . . . . . . . . . . . . . . . . . . . . . Critical Strikes 12 | . . . . . . . . 1 . . 1 1 . . . . . . 3 . 2 2 . 2 Meltdown 1 | . . . . . . . . . . . . . . . . . . . . . . 1 . . Blast 3 | . . . . . . . . . . . . . . . . . . . . . 2 1 . . Sever 3 | . . . . . . . . 1 . . 1 1 . . . . . . . . . . . . Sunder 5 | . . . . . . . . . . . . . . . . . . . 3 . . . . 2 Melee Attacks 82 | . . . . . . . 13 6 13 9 9 6 2 5 11 . . . . . . 3 5 . Kinetic 8 | . . . . . . . . . . . . . . . . . . . . . . 3 5 . Impact . | . . . . . . . . . . . . . . . . . . . . . . . . . Slashing 74 | . . . . . . . 13 6 13 9 9 6 2 5 11 . . . . . . . . . Piercing . | . . . . . . . . . . . . . . . . . . . . . . . . . Sneak Attacks 20 | . . . . . . . 2 6 9 . . 2 . 1 . . . . . . . . . . Combat Hostiles . | . . . . . . . . . . . . . . . . . . . . . . . . . Follow-up Attacks . | . . . . . . . . . . . . . . . . . . . . . . . . . Damage Inflicted 17961 | . 1 . . . . 2 712 651 1048 375 336 362 187 583 670 256 1301 389 570 45 1711 1409 487 6866 Guns 335 | . . . . . . . 79 . . . . . . . . 256 . . . . . . . . Cannons 10196 | . . . . . . . 52 . 37 . . . . . 276 . 157 158 570 . 983 921 197 6845 Explosions 3625 | . . . . . . . . 312 . 375 . . . 375 166 . 1144 231 . . 728 294 . . Melee 3714 | . . . . . . . 581 339 1011 . 336 362 187 208 228 . . . . . . 172 290 . Ramming 91 | . 1 . . . . 2 . . . . . . . . . . . . . 45 . 22 . 21 Kinetic 2523 | . . . . . . . 131 . . . . . . . . . . . . . 864 869 290 369 Thermal 2356 | . . . . . . . . . 37 375 . . . . 442 256 240 389 . . 119 224 197 77 Explosive 2458 | . . . . . . . . . . . . . . 375 . . 1061 . . . 728 294 . . Electromagnetic 312 | . . . . . . . . 312 . . . . . . . . . . . . . . . . Impact . | . . . . . . . . . . . . . . . . . . . . . . . . . Slashing 3252 | . . . . . . . 581 339 1011 . 336 362 187 208 228 . . . . . . . . . Piercing . | . . . . . . . . . . . . . . . . . . . . . . . . . Entropic 6969 | . . . . . . . . . . . . . . . . . . . 570 . . . . 6399 Highest Corruption 17 | . . . . . 5 3 3 3 3 1 4 4 4 4 3 3 3 . 2 2 4 4 3 17 Average Corruption 3 | . . . . . 5 1 3 3 2 1 3 4 4 4 2 3 2 . 1 1 3 1 2 5 Corruption Purged 6 | . . . . . . . . . 3 . . . . . . . 3 . . . . . . . Corruption Blocked . | . . . . . . . . . . . . . . . . . . . . . . . . . Effects 144 | . . . . . 1 3 8 10 2 1 19 10 2 5 5 21 7 . 7 . 16 7 4 16 Message Errors 29 | . . . . . . . . 1 1 . 4 7 . . . 3 . . 3 . 5 2 1 2 Matter Fused 30 | . . . . . 1 1 1 3 1 . 5 . . 1 2 4 1 . 1 . 3 . 2 4 Heat Flow Errors 15 | . . . . . . 1 1 1 . . 2 . . . 1 4 . . . . 3 1 . 1 Energy Discharges 24 | . . . . . . . 2 2 . . 1 1 . . . 6 2 . 2 . 3 1 . 4 Parts Rejected 1 | . . . . . . . . 1 . . . . . . . . . . . . . . . . Parts Fused 7 | . . . . . . 1 1 . . . . . 2 . 1 . . . . . 1 . . 1 Data Loss (minor) 22 | . . . . . . . 1 1 . 1 5 2 . 2 1 2 2 . . . . 1 1 3 Data Loss (major) 5 | . . . . . . . 1 1 . . 1 . . 1 . . . . . . . 1 . . Misfires 6 | . . . . . . . . . . . 1 . . 1 . . 2 . . . . 1 . 1 Alerts 4 | . . . . . . . 1 . . . . . . . . 1 . . 1 . 1 . . . Weapon Failures 1 | . . . . . . . . . . . . . . . . 1 . . . . . . . . Overload Shots . | . . . . . . . . . . . . . . . . . . . . . . . . . Overflow Damage 1901 | . . . . . . . 67 2 382 . 10 149 69 118 41 . 53 32 58 . 74 111 14 721 Projectiles 1016 | . . . . . . . . . . . . . . . 39 . . 32 58 . 61 91 14 721 Explosions 92 | . . . . . . . . . . . . . . 24 2 . 53 . . . 13 . . . Melee 793 | . . . . . . . 67 2 382 . 10 149 69 94 . . . . . . . 20 . . Knockbacks 6 | . . . . . . . . . . . . . . . . . . . . . 3 3 . . Impact 1 | . . . . . . . . . . . . . . . . . . . . . . 1 . . Kinetic 5 | . . . . . . . . . . . . . . . . . . . . . 3 2 . . Secondary . | . . . . . . . . . . . . . . . . . . . . . . . . . Self-Inflicted Damage 127 | . . . . . . 1 . 30 . 17 . . . . . . 79 . . . . . . . Shots 4 | . . . . . . . . 2 . 1 . . . . . . 1 . . . . . . . Rammed 2 | . 1 . . . . 1 . . . . . . . . . . . . . . . . . . Targets Rammed 11 | . 1 . . . . 1 . . . . . . . . . . . . . 5 . 2 . 2 Kicked 9 | . . . . . . . . . . . . . . . . . . . . 5 . 2 . 2 Crushed . | . . . . . . . . . . . . . . . . . . . . . . . . . Highest Temperature 424 | . . . . . . 185 125 195 109 58 309 . . 48 261 241 266 424 407 216 324 92 234 188 Average Temperature 80 | . . . . . . 111 42 107 46 28 95 . . 25 100 83 54 86 198 70 105 59 59 104 Received Heat Transfer 1230 | . . 12 153 . . . 186 . 27 . 9 . . . 81 . . 421 9 16 32 68 9 207 Effects 6 | . . . . . . . . . . . . . . . . 1 . 2 2 . 1 . . . Shutdowns 1 | . . . . . . . . . . . . . . . . . . . 1 . . . . . Energy Bleed 3 | . . . . . . . . . . . . . . . . . . 2 . . 1 . . . Interference 1 | . . . . . . . . . . . . . . . . 1 . . . . . . . . Damage (minor) 1 | . . . . . . . . . . . . . . . . . . . 1 . . . . . Siege Activations . | . . . . . . . . . . . . . . . . . . . . . . . . . Martial Activations . | . . . . . . . . . . . . . . . . . . . . . . . . . Shielding Activations . | . . . . . . . . . . . . . . . . . . . . . . . . . Robots Disrupted . | . . . . . . . . . . . . . . . . . . . . . . . . . Combat Hostiles . | . . . . . . . . . . . . . . . . . . . . . . . . . Robots Corrupted 1 | . . . . . . . . . . . . . . . . . . . . . . 1 . . Combat Hostiles . | . . . . . . . . . . . . . . . . . . . . . . . . . Parts Fried 2 | . . . . . . . . . . . . . . . . . . . . . . 2 . . Impact Corruptions 1 | . . . . . . . . . . . . . . . . . . . . . . 1 . . Robots Melted 1 | . . . . . . . . . . . . . . . . . . . . . . 1 . . Combat Hostiles 1 | . . . . . . . . . . . . . . . . . . . . . . 1 . . Parts Melted 7 | . . . . . . . . . . . 5 . . . . . . . . . . 2 . . Heat Transferred 1473 | . . . . . . . . . . 300 . . . . 100 333 50 200 . . 111 185 148 46 Parts Sabotaged . | . . . . . . . . . . . . . . . . . . . . . . . . . Parts Stolen . | . . . . . . . . . . . . . . . . . . . . . . . . . Parts Stripped 20 | . . . . . . . . . . . . . . . . . . . . . . 12 8 . Power Chain Reactions 3 | . . . . . . . . . . . . . . . 1 . 1 1 . . . . . . Alert | -11 -10 -10 -8 -7 -7 -6 -6 -6 -6 -5 -5 -5 -5 -4 -4 -4 -4 -4 -3 -3 -2 -2 -1 -1 ------- Run | Yrd Mat Sub Mat Fac DSF Fac Ext Cet Arc Fac Upp Upp Zhi Pro Fac Upp Upp War Pro Res Res Qua Acc Com Maximum Alert Level 2 | . . . . . . . 1 1 . 1 . . . . . . . . . 1 1 1 2 1 Low Security (%) 67 | 100 100 . 100 100 100 100 83 99 100 96 . . . . 100 . . . . 62 53 33 43 59 Level 1 32 | . . . . . . . 16 . . 3 . . . . . . . . . 37 46 66 54 40 Level 2 . | . . . . . . . . . . . . . . . . . . . . . . . 1 . Level 3 . | . . . . . . . . . . . . . . . . . . . . . . . . . Level 4 . | . . . . . . . . . . . . . . . . . . . . . . . . . Level 5 . | . . . . . . . . . . . . . . . . . . . . . . . . . High Security . | . . . . . . . . . . . . . . . . . . . . . . . . . Max Security . | . . . . . . . . . . . . . . . . . . . . . . . . . Peak Influence 407 | . . . 45 20 15 45 290 202 78 207 . . . . 40 . . . . 280 329 311 407 260 Initial 243 | . . . . 20 7 7 11 140 51 13 . . . . . . . . . 149 133 66 177 243 Average 145 | . . . 11 18 5 4 89 99 52 170 . . . . 9 . . . . 166 189 208 226 170 Influence Increases 4970 | . . 60 75 . 15 45 692 282 177 260 110 5 . 95 135 110 200 20 418 563 472 587 530 119 Destroy 0b10 Robot/C 2600 | . . . . . . 20 380 160 80 20 40 . . 80 40 . 100 20 280 340 280 400 320 40 Destroy 0b10 Robot/NC 140 | . . . . . . . 15 10 40 5 . 5 . 5 5 5 10 . . . 5 15 5 15 Destroy Leader 374 | . . . . . . 10 52 . . . 10 . . 10 22 . . . 20 60 52 72 62 4 Allied During Kill 299 | . . . . . . . 106 97 38 . . . . . . . . . 13 13 6 10 16 . Successful Hack 190 | . . . . . . . 44 . . 8 . . . . 26 . . . . 24 24 . 37 27 Disable Machine 180 | . . . . . . . 45 . 15 90 . . . . . . . . . . . 30 . . Destroy Structure 467 | . . . . . . . 5 15 4 92 . . . . 42 . . . . 36 105 60 75 33 Partial Spotted 60 | . . . 30 . . . . . . 30 . . . . . . . . . . . . . . Lose Combat Pursuer 660 | . . 60 45 . 15 15 45 . . 15 60 . . . . 105 90 . 105 90 . . 15 . Influence Decreases 4952 | . . 60 30 35 10 35 467 403 268 125 262 26 . 95 115 130 105 115 196 547 591 409 446 482 Entered New Map 925 | . . . . 25 3 8 14 110 78 25 65 5 . . . 8 . 95 . 73 105 53 120 138 Time Decay 3606 | . . 60 30 10 . 27 293 249 110 100 177 21 . 95 95 122 105 20 196 474 486 356 326 254 Lost Part 141 | . . . . . 7 . . 4 20 . 20 . . . 20 . . . . . . . . 70 Lost Ally 280 | . . . . . . . 160 40 60 . . . . . . . . . . . . . . 20 Squads Dispatched 32 | . 1 . 2 . 1 3 2 . . . . . . . 4 . . . . 5 1 8 2 3 Investigation 7 | . . . 1 . . 1 1 . . . . . . . 3 . . . . 1 . . . . Extermination 8 | . . . . . . 1 . . . . . . . . . . . . . 1 . 3 1 2 Reinforcement 13 | . 1 . 1 . 1 1 1 . . . . . . . 1 . . . . 3 1 2 . 1 Assault . | . . . . . . . . . . . . . . . . . . . . . . . . . Garrison 4 | . . . . . . . . . . . . . . . . . . . . . . 3 1 . Intercept . | . . . . . . . . . . . . . . . . . . . . . . . . . Searches Triggered . | . . . . . . . . . . . . . . . . . . . . . . . . . Construction Impeded 1 | . . . . . . . . . . . . . . . . . . . . 1 . . . . Haulers Reinforced 2 | . . . . . . . . . . . . . . . . . . . . 1 1 . . . Active Scanning Responses . | . . . . . . . . . . . . . . . . . . . . . . . . . Cargo Convoy Interrupts . | . . . . . . . . . . . . . . . . . . . . . . . . . Stealth | -11 -10 -10 -8 -7 -7 -6 -6 -6 -6 -5 -5 -5 -5 -4 -4 -4 -4 -4 -3 -3 -2 -2 -1 -1 --------- Run | Yrd Mat Sub Mat Fac DSF Fac Ext Cet Arc Fac Upp Upp Zhi Pro Fac Upp Upp War Pro Res Res Qua Acc Com Distress Signals 24 | . 1 . 3 . . . 2 2 . . . . . . . 1 . 2 . 3 8 . . 2 Communications Jammed . | . . . . . . . . . . . . . . . . . . . . . . . . . Distress Signals . | . . . . . . . . . . . . . . . . . . . . . . . . . Times Spotted 257 | . 4 7 15 . 3 6 22 10 4 3 7 . . 4 10 6 8 30 16 22 22 23 13 22 Peak Tracking Total 13 | . 3 4 13 . 3 6 5 5 1 2 3 . . 4 4 5 5 11 7 7 5 4 3 6 Tactical Retreats 27 | . . 2 2 . 1 1 3 . . 1 2 . . . . 4 3 . 5 2 . . 1 . Traps | -11 -10 -10 -8 -7 -7 -6 -6 -6 -6 -5 -5 -5 -5 -4 -4 -4 -4 -4 -3 -3 -2 -2 -1 -1 ------- Run | Yrd Mat Sub Mat Fac DSF Fac Ext Cet Arc Fac Upp Upp Zhi Pro Fac Upp Upp War Pro Res Res Qua Acc Com Traps Triggered 14 | . . . 1 . . 2 4 . . 1 . . . . 1 . . . . . . 5 . . Indirectly . | . . . . . . . . . . . . . . . . . . . . . . . . . Trap Hack Attempts . | . . . . . . . . . . . . . . . . . . . . . . . . . Triggered . | . . . . . . . . . . . . . . . . . . . . . . . . . Disarmed . | . . . . . . . . . . . . . . . . . . . . . . . . . Reprogrammed . | . . . . . . . . . . . . . . . . . . . . . . . . . Reused . | . . . . . . . . . . . . . . . . . . . . . . . . . Traps Extracted . | . . . . . . . . . . . . . . . . . . . . . . . . . Installed . | . . . . . . . . . . . . . . . . . . . . . . . . . Triggered . | . . . . . . . . . . . . . . . . . . . . . . . . . Most Traps Carried 6 | . . . . . . . . . . . . . . . . 6 6 6 . . . . . . Machines | -11 -10 -10 -8 -7 -7 -6 -6 -6 -6 -5 -5 -5 -5 -4 -4 -4 -4 -4 -3 -3 -2 -2 -1 -1 ---------- Run | Yrd Mat Sub Mat Fac DSF Fac Ext Cet Arc Fac Upp Upp Zhi Pro Fac Upp Upp War Pro Res Res Qua Acc Com Machines Disabled 13 | . . . . . . . 3 . 1 6 . . . . . . . 1 . . . 2 . . Max in Single Turn 4 | . . . . . . . 1 . 1 4 . . . . . . . 1 . . . 1 . . Garrison Access 6 | . . . . . . . . . . . . . . . . . . . . 2 2 1 1 . Machines Repaired . | . . . . . . . . . . . . . . . . . . . . . . . . . Machines Dismantled . | . . . . . . . . . . . . . . . . . . . . . . . . . Machines Sabotaged . | . . . . . . . . . . . . . . . . . . . . . . . . . Overloaded Fab Kills . | . . . . . . . . . . . . . . . . . . . . . . . . . Hacking | -11 -10 -10 -8 -7 -7 -6 -6 -6 -6 -5 -5 -5 -5 -4 -4 -4 -4 -4 -3 -3 -2 -2 -1 -1 --------- Run | Yrd Mat Sub Mat Fac DSF Fac Ext Cet Arc Fac Upp Upp Zhi Pro Fac Upp Upp War Pro Res Res Qua Acc Com Machines Accessed 53 | . . . . 2 . 3 12 . . 2 . 1 4 . 4 3 . 3 . 4 1 4 6 4 Terminals 34 | . . . . 2 . 1 12 . . 2 . . . . 2 . . . . 2 1 3 5 4 Fabricators 2 | . . . . . . 1 . . . . . . . . 1 . . . . . . . . . Repair Stations . | . . . . . . . . . . . . . . . . . . . . . . . . . Recycling Units . | . . . . . . . . . . . . . . . . . . . . . . . . . Scanalyzers 1 | . . . . . . . . . . . . . . . 1 . . . . . . . . . Garrison Access 5 | . . . . . . 1 . . . . . . . . . . . . . 2 . 1 1 . Total Hacks 119 | . . . . 3 . 9 26 . . 6 . 1 17 . 13 7 . 9 . 5 2 6 9 6 Successful 76 | . . . . 2 . 1 10 . . 5 . 1 17 . 7 7 . 9 . 3 1 2 7 4 Failed 43 | . . . . 1 . 8 16 . . 1 . . . . 6 . . . . 2 1 4 2 2 Catastrophic 8 | . . . . 1 . 1 1 . . . . . . . 1 . . . . 2 . 1 . 1 Database Lockouts . | . . . . . . . . . . . . . . . . . . . . . . . . . Manual 18 | . . . . 1 . 3 . 1 . 2 . . . . 3 . . . . 1 . 1 4 2 Terminals 66 | . . . . 3 . 1 26 . . 6 . . . . 7 . . . . 3 2 4 8 6 Fabricators 6 | . . . . . . 3 . . . . . . . . 3 . . . . . . . . . Repair Stations . | . . . . . . . . . . . . . . . . . . . . . . . . . Recycling Units . | . . . . . . . . . . . . . . . . . . . . . . . . . Scanalyzers 3 | . . . . . . . . . . . . . . . 3 . . . . . . . . . Garrison Access 10 | . . . . . . 5 . . . . . . . . . . . . . 2 . 2 1 . Terminal Hacks 67 | . . . . 2 . 1 10 . . 5 . 1 17 . 4 7 . 9 . 1 1 1 5 3 Record 14 | . . . . . . . . . . 1 . . 5 . . 5 . 3 . . . . . . Part Schematic 5 | . . . . . . . . . . 1 . . 4 . . . . . . . . . . . Robot Analysis 4 | . . . . . . . . . . . . . 4 . . . . . . . . . . . Prototype ID Bank 11 | . . . . 1 . . . . . 1 . . 4 . . . . 5 . . . . . . Open Door 19 | . . . . . . 1 10 . . . . 1 . . . 2 . 1 . . . . 3 1 Open DSF 1 | . . . . 1 . . . . . . . . . . . . . . . . . . . . Level Access Points 2 | . . . . . . . . . . . . . . . . . . . . 1 1 . . . Branch Access Points 3 | . . . . . . . . . . 1 . . . . 1 . . . . . . . 1 . Terminal Index 1 | . . . . . . . . . . . . . . . 1 . . . . . . . . . Fabricator Index 1 | . . . . . . . . . . . . . . . 1 . . . . . . . . . Alert Level 1 | . . . . . . . . . . . . . . . . . . . . . . 1 . . Registered Components 1 | . . . . . . . . . . . . . . . 1 . . . . . . . . . Zone Layout 2 | . . . . . . . . . . 1 . . . . . . . . . . . . 1 . Disengage Seal 2 | . . . . . . . . . . . . . . . . . . . . . . . . 2 Fabricator Hacks 1 | . . . . . . . . . . . . . . . 1 . . . . . . . . . Load Schematic 1 | . . . . . . . . . . . . . . . 1 . . . . . . . . . Repair Station Hacks . | . . . . . . . . . . . . . . . . . . . . . . . . . Recycling Unit Hacks . | . . . . . . . . . . . . . . . . . . . . . . . . . Scanalyzer 2 | . . . . . . . . . . . . . . . 2 . . . . . . . . . Retrieve Study 2 | . . . . . . . . . . . . . . . 2 . . . . . . . . . Garrison Access Hacks 4 | . . . . . . . . . . . . . . . . . . . . 2 . 1 1 . Seal Access 4 | . . . . . . . . . . . . . . . . . . . . 2 . 1 1 . Unauthorized Hacks 2 | . . . . . . . . . . . . . . . . . . . . . . . 1 1 Terminals 2 | . . . . . . . . . . . . . . . . . . . . . . . 1 1 Track 1 | . . . . . . . . . . . . . . . . . . . . . . . 1 . Botnet 1 | . . . . . . . . . . . . . . . . . . . . . . . . 1 Fabricators . | . . . . . . . . . . . . . . . . . . . . . . . . . Repair Stations . | . . . . . . . . . . . . . . . . . . . . . . . . . Recycling Units . | . . . . . . . . . . . . . . . . . . . . . . . . . Scanalyzers . | . . . . . . . . . . . . . . . . . . . . . . . . . Garrison Access . | . . . . . . . . . . . . . . . . . . . . . . . . . Data Cores Recovered . | . . . . . . . . . . . . . . . . . . . . . . . . . Used . | . . . . . . . . . . . . . . . . . . . . . . . . . Hacking Detections 32 | . . . . 2 . 3 9 . . 1 . . . . 4 . . . . 2 1 4 3 3 Full Trace Events 4 | . . . . . . 1 . . . . . . . . 3 . . . . . . . . . Feedback Events 1 | . . . . . . . . . . . . . . . 1 . . . . . . . . . Corruption 1 | . . . . . . . . . . . . . . . 1 . . . . . . . . . Feedback Blocked . | . . . . . . . . . . . . . . . . . . . . . . . . . Robot Schematics Acquired . | . . . . . . . . . . . . . . . . . . . . . . . . . Robots Built . | . . . . . . . . . . . . . . . . . . . . . . . . . Authchips . | . . . . . . . . . . . . . . . . . . . . . . . . . Time . | . . . . . . . . . . . . . . . . . . . . . . . . . Total Robot Build Rating . | . . . . . . . . . . . . . . . . . . . . . . . . . Part Schematics Acquired 5 | . . . . . . . . . . 1 . . 4 . . . . . . . . . . . Parts Built . | . . . . . . . . . . . . . . . . . . . . . . . . . Authchips . | . . . . . . . . . . . . . . . . . . . . . . . . . Time . | . . . . . . . . . . . . . . . . . . . . . . . . . Total Part Build Rating . | . . . . . . . . . . . . . . . . . . . . . . . . . Part Studies Acquired 2 | . . . . . . . . . . . . . . . 2 . . . . . . . . . Parts Repaired . | . . . . . . . . . . . . . . . . . . . . . . . . . Time . | . . . . . . . . . . . . . . . . . . . . . . . . . Parts Recycled . | . . . . . . . . . . . . . . . . . . . . . . . . . Recycled Matter . | . . . . . . . . . . . . . . . . . . . . . . . . . Retrieved Matter . | . . . . . . . . . . . . . . . . . . . . . . . . . Retrieved Components . | . . . . . . . . . . . . . . . . . . . . . . . . . Parts Scanalyzed . | . . . . . . . . . . . . . . . . . . . . . . . . . Part Schematics Acquired . | . . . . . . . . . . . . . . . . . . . . . . . . . Parts Damaged . | . . . . . . . . . . . . . . . . . . . . . . . . . Bothacking | -11 -10 -10 -8 -7 -7 -6 -6 -6 -6 -5 -5 -5 -5 -4 -4 -4 -4 -4 -3 -3 -2 -2 -1 -1 ------------ Run | Yrd Mat Sub Mat Fac DSF Fac Ext Cet Arc Fac Upp Upp Zhi Pro Fac Upp Upp War Pro Res Res Qua Acc Com Used RIF Installer . | . . . . . . . . . . . . . . . . . . . . . . . . . Robots Hacked . | . . . . . . . . . . . . . . . . . . . . . . . . . Non-combat . | . . . . . . . . . . . . . . . . . . . . . . . . . Combat . | . . . . . . . . . . . . . . . . . . . . . . . . . Robot Hacks Applied . | . . . . . . . . . . . . . . . . . . . . . . . . . Relay Couplers Released 6 | . . . . . . . . . . . . . . . . . . . . . 3 3 . . Machine Destruction 3 | . . . . . . . . . . . . . . . . . . . . . 3 . . . Programmers 3 | . . . . . . . . . . . . . . . . . . . . . . 3 . . Fabnet Peak Effective % . | . . . . . . . . . . . . . . . . . . . . . . . . . Robots Rewired 1 | . . . . . . 1 . . . . . . . . . . . . . . . . . . Allies Hacked . | . . . . . . . . . . . . . . . . . . . . . . . . . Hacks Repelled . | . . . . . . . . . . . . . . . . . . . . . . . . . Allies | -11 -10 -10 -8 -7 -7 -6 -6 -6 -6 -5 -5 -5 -5 -4 -4 -4 -4 -4 -3 -3 -2 -2 -1 -1 -------- Run | Yrd Mat Sub Mat Fac DSF Fac Ext Cet Arc Fac Upp Upp Zhi Pro Fac Upp Upp War Pro Res Res Qua Acc Com Total Allies 22 | . . . . . . 1 16 5 . . . . . . . . . . . . . . . . Largest Group 6 | . . . . . . 1 6 5 4 . . . . . . . . . . . . . . . Highest-Rated Group 480 | . . . . . . 32 338 480 363 . . . . . . . . . . . . . . . Highest-Rated Ally 159 | . . . . . . 32 159 159 96 . . . . . . . . . . . . . . . Total Orders 89 | . . . . . . . . . . . . . . . . . . . 14 31 23 10 7 4 STAY 4 | . . . . . . . . . . . . . . . . . . . 1 1 2 . . . ROAM 1 | . . . . . . . . . . . . . . . . . . . . . 1 . . . FOLLOW 2 | . . . . . . . . . . . . . . . . . . . . 2 . . . . EXPLORE 28 | . . . . . . . . . . . . . . . . . . . 4 12 8 3 1 . RETURN 54 | . . . . . . . . . . . . . . . . . . . 9 16 12 7 6 4 Ally Attacks 311 | . . . . . . 2 119 42 16 . . . . . . . . . 24 31 8 23 40 6 Total Damage 21471 | . . . . . . 75 2114 1901 701 . . . . . . . . . 2383 4124 1276 3312 4818 767 Kills 93 | . . . . . . 1 13 10 3 . . . . . . . . . 13 18 6 10 16 3 Allies Corrupted 1 | . . . . . . . . . . . . . . . . . . . . . . . . 1 Allies Melted 1 | . . . . . . . 1 . . . . . . . . . . . . . . . . . Intel | -11 -10 -10 -8 -7 -7 -6 -6 -6 -6 -5 -5 -5 -5 -4 -4 -4 -4 -4 -3 -3 -2 -2 -1 -1 ------- Run | Yrd Mat Sub Mat Fac DSF Fac Ext Cet Arc Fac Upp Upp Zhi Pro Fac Upp Upp War Pro Res Res Qua Acc Com Active Infowar (turns) 4922 | . . . 72 22 62 220 501 23 . 148 824 345 98 272 292 861 460 491 . . . . 231 . Optics 813 | . . . 72 22 62 220 437 . . . . . . . . . . . . . . . . . Sensors 3791 | . . . . . . . . . . 148 824 345 98 272 292 861 460 491 . . . . . . IFF 708 | . . . . . . 196 489 23 . . . . . . . . . . . . . . . . Terrain 231 | . . . . . . . . . . . . . . . . . . . . . . . 231 . Seismic 85 | . . . . . . . 62 23 . . . . . . . . . . . . . . . . Robot Analysis Total 4 | . . . . . . . . . . . . . 4 . . . . . . . . . . . Derelict Logs Recovered 7 | . . . . . . . . . . . 1 2 . 2 . 2 . . . . . . . . Drone Launches 45 | . . . . . . . . . . . . . . . . . . . 7 12 10 7 5 4 Drone Recoveries 44 | . . . . . . . . . . . . . . . . . . . 7 12 10 7 5 3 Exploration | -11 -10 -10 -8 -7 -7 -6 -6 -6 -6 -5 -5 -5 -5 -4 -4 -4 -4 -4 -3 -3 -2 -2 -1 -1 ------------- Run | Yrd Mat Sub Mat Fac DSF Fac Ext Cet Arc Fac Upp Upp Zhi Pro Fac Upp Upp War Pro Res Res Qua Acc Com Turns Passed 12049 | 36 56 569 111 22 62 220 679 579 230 209 868 345 111 275 397 1175 486 607 420 1215 1276 809 738 554 Spaces Moved 11274 | 35 90 581 206 37 121 375 724 239 200 292 819 632 170 516 430 1317 935 1215 212 607 510 384 343 284 Core 1655 | 27 90 581 206 37 121 340 . 198 47 1 . . . . . . . 7 . . . . . . Treads 8 | 8 . . . . . . . . . . . . . . . . . . . . . . . . Legs 2417 | . . . . . . . . . . . . . . . . . . 77 212 607 510 384 343 284 Wheels . | . . . . . . . . . . . . . . . . . . . . . . . . . Hover 2971 | . . . . . . . . . 153 291 819 632 170 516 390 . . . . . . . . . Flight 4223 | . . . . . . 35 724 41 . . . . . . 40 1317 935 1131 . . . . . . Fastest Speed 23 | 50 50 50 50 50 50 29 23 35 44 44 44 52 48 48 29 29 29 26 120 120 186 186 116 115 Average Speed 71 | 75 50 50 50 50 50 48 27 136 77 44 48 52 50 48 50 36 29 34 120 181 189 186 161 157 Slowest Speed 400 | 160 50 50 50 50 50 50 35 400 150 150 112 52 52 48 111 109 29 150 120 190 190 186 186 186 Overloaded Moves . | . . . . . . . . . . . . . . . . . . . . . . . . . Propulsion Burnouts . | . . . . . . . . . . . . . . . . . . . . . . . . . Robots Hopped 7 | . . . . . . 2 1 . . . . . . . . . . 4 . . . . . . Potential Cave-ins . | . . . . . . . . . . . . . . . . . . . . . . . . . Cave-ins Triggered . | . . . . . . . . . . . . . . . . . . . . . . . . . Exploration Rate (%) 50 | 4 24 48 33 2 94 13 79 56 74 10 87 73 60 73 16 86 81 86 59 71 51 54 11 16 Regions Visited 24 Branch Regions 14 Pre-discovered Areas 6 | . . 1 . . . . . . . . . . 3 1 . 1 . . . . . . . . Known Exits Taken 15 | . . . . 1 . . 1 1 1 1 1 1 1 1 1 1 1 . . 1 . 1 1 . Unknown Exits Taken 8 | 1 1 1 1 . . 1 . . . . . . . . . . . 1 1 . 1 . . . Scrap Searched 10 | . . . . . . . . . . . 1 1 . 4 . 2 2 . . . . . . . Spaces Dug 95 | . . . . . . . . . 3 10 4 . . 1 6 8 7 5 . 15 3 1 18 14 Terrain Destroyed 472 | . . . . . . . . . 4 48 8 . . 29 26 13 199 6 14 18 40 24 29 14 Melee 14 | . . . . . . . . . . 9 . . . . 5 . . . . . . . . . Projectile 133 | . . . . . . . . . 4 2 8 . . 2 7 13 11 6 14 18 11 6 29 2 AOE 325 | . . . . . . . . . . 37 . . . 27 14 . 188 . . . 29 18 . 12 Terrain Rammed . | . . . . . . . . . . . . . . . . . . . . . . . . . Walls Destroyed . | . . . . . . . . . . . . . . . . . . . . . . . . . Machines Disabled . | . . . . . . . . . . . . . . . . . . . . . . . . . Actions | -11 -10 -10 -8 -7 -7 -6 -6 -6 -6 -5 -5 -5 -5 -4 -4 -4 -4 -4 -3 -3 -2 -2 -1 -1 --------- Run | Yrd Mat Sub Mat Fac DSF Fac Ext Cet Arc Fac Upp Upp Zhi Pro Fac Upp Upp War Pro Res Res Qua Acc Com Total 14863 | 42 100 859 213 40 121 408 1169 474 245 349 1260 637 191 530 573 1987 1120 1394 366 704 787 447 483 364 Wait 2760 | . 8 277 . . . 15 338 201 . 26 422 . . . 91 616 148 64 144 51 225 26 77 31 Move 11239 | 34 89 580 205 36 120 370 721 238 199 291 818 631 169 515 429 1316 934 1208 211 606 509 384 342 284 Hop 5 | . . . . . . 2 1 . . . . . . . . . . 2 . . . . . . Pick Up 98 | 4 1 1 3 . 1 3 8 9 5 3 . . 4 . 4 2 3 25 . 9 5 1 3 4 Fast Attach 111 | 4 . . 1 1 . 7 13 3 8 6 . . 7 3 9 11 3 13 . 1 4 9 6 2 Attach 46 | . . . 3 1 . 3 5 6 4 1 1 . . 1 4 2 . 5 . 2 . . . 8 Detach 13 | . . . . 1 . . 3 2 2 . 1 . . . 1 1 . . . . . 1 . 1 Swap 34 | . . . . . . . . . 1 1 2 . . 2 2 2 2 3 . 5 6 . 6 2 Drop 169 | . 1 1 1 1 . 1 14 2 7 7 . . 9 2 8 13 6 53 . 7 13 7 10 6 Fire 245 | . . . . . . . 8 7 6 5 7 . . 2 14 24 24 21 11 18 25 15 34 24 Melee 82 | . . . . . . . 13 6 13 9 9 6 2 5 11 . . . . . . 3 5 . Ram 2 | . 1 . . . . 1 . . . . . . . . . . . . . . . . . . Kick 8 | . . . . . . . . . . . . . . . . . . . . 5 . 1 . 2 Crush . | . . . . . . . . . . . . . . . . . . . . . . . . . Escape Stasis 45 | . . . . . . . 45 . . . . . . . . . . . . . . . . . Rewire 6 | . . . . . . 6 . . . . . . . . . . . . . . . . . . Trap . | . . . . . . . . . . . . . . . . . . . . . . . . . Miscellaneous . | . . . . . . . . . . . . . . . . . . . . . . . . . Route ------- -11/Scrapyard -10/Materials -10/Subcaves -8/Materials -7/Factory (discovered 2 exits: [*Low] / DSF) -7/DSF -6/Factory -6/Extension (discovered 2 exits: *Fac / *Cet) -6/Cetus (discovered 2 exits: *Fac / *Arc) -6/Archives (discovered 2 exits: *Fac / [*Hub]) -5/Factory (discovered 2 exits: *Upp x2) -5/Upper Caves -5/Upper Caves (discovered 2 exits: Fac / *Zhi) -5/Zhirov -4/Proximity Caves -4/Factory (discovered 3 exits: *Upp x2 / Arm) -4/Upper Caves -4/Upper Caves -4/Warlord -3/Proximity Caves -3/Research (discovered 4 exits: *Res x3 / [*Tes]) -2/Research (discovered 4 exits: *Acc x3 / *Qua) -2/Quarantine -1/Access -1/Command History --------- Turn | Location | Event 20 | -11/Scrapyard | Discovered new exit (range 15) 37 | -11/Scrapyard | Entered Materials 38 | -10/Materials | Met a group of wandering Federalists 77 | -10/Materials | Discovered new exit (range 16) 93 | -10/Materials | Entered Subcaves 94 | -10/Subcaves | Approached by a straggling Scientist 238 | -10/Subcaves | Shifting Twisted Machinery released Sub. Optics 250 | -10/Subcaves | Learned location of Zion (-7) 250 | -10/Subcaves | Met a Zionite searching for "candidates" 309 | -10/Subcaves | Build established: Mutant 325 | -10/Subcaves | Shifting Twisted Machinery released Sub. Laser 661 | -10/Subcaves | Discovered new exit (range 4) 662 | -10/Subcaves | Entered Materials 662 | -8/Materials | Evolved 4 slots: Propulsion x2, Utility x2 764 | -8/Materials | Discovered new exit (range 20) 773 | -8/Materials | Entered Factory 773 | -7/Factory | Evolved 2 slots: Utility x2 789 | -7/Factory | Discovered new exit (range 18) 790 | -7/Factory | Identified exit to DSF 795 | -7/Factory | Entered DSF 812 | -7/DSF | Additional patrols routed to DSF 812 | -7/DSF | Discovered new exit (range 19) 857 | -7/DSF | Entered Factory 857 | -6/Factory | Evolved 2 slots: Propulsion x1, Utility x1 1057 | -6/Factory | Discovered new exit (range 10) 1077 | -6/Factory | Entered Extension 1178 | -6/Extension | Rescued a captive Derelict 1196 | -6/Extension | Rescued a captive Derelict 1233 | -6/Extension | Rescued a captive Derelict 1235 | -6/Extension | Rescued a captive Derelict 1241 | -6/Extension | Rescued a captive Derelict 1260 | -6/Extension | Rescued a captive Derelict 1261 | -6/Extension | Rescued a captive Derelict 1378 | -6/Extension | Build established: Scavenger-Sprinter 1423 | -6/Extension | Spotted B-75 Beast 1502 | -6/Extension | Spotted B-75 Beast 1508 | -6/Extension | Core integrity fell below 50% 1519 | -6/Extension | Rescued a captive Derelict 1520 | -6/Extension | Rescued a captive Derelict 1546 | -6/Extension | Lost 8 parts (6n2u) 1554 | -6/Extension | Lost 4 allies 1562 | -6/Extension | Rescued a captive Derelict 1563 | -6/Extension | Rescued a captive Derelict 1585 | -6/Extension | Rescued A7 1627 | -6/Extension | Rescued a captive Derelict 1628 | -6/Extension | Rescued a captive Derelict 1682 | -6/Extension | Rescued a captive Derelict 1684 | -6/Extension | Rescued a captive Derelict 1705 | -6/Extension | Lost 5 allies 1706 | -6/Extension | Discovered new exit (range 10) 1706 | -6/Extension | Discovered new exit (range 6) 1710 | -6/Extension | Identified exit to Cetus 1756 | -6/Extension | Entered Cetus 1756 | -6/Cetus | Accompanied by 3 allies (A7) 1761 | -6/Cetus | Acquired a Cetus Manufacturing Module code from A7 1761 | -6/Cetus | Spotted Cetus Guard 1763 | -6/Cetus | Spotted Cetus Guard 1771 | -6/Cetus | Spotted Cetus Guard 1771 | -6/Cetus | Spotted Cetus Guard 1780 | -6/Cetus | Allies destroyed Cetus Guard 1781 | -6/Cetus | Allies destroyed Cetus Guard 1786 | -6/Cetus | Allies destroyed Cetus Guard 1792 | -6/Cetus | Allies destroyed Cetus Guard 1814 | -6/Cetus | Build established: Mutant 1987 | -6/Cetus | Started Cetus Manufacturing Module 2012 | -6/Cetus | Manufactured an Enhanced Grunt 2037 | -6/Cetus | Manufactured an Enhanced Grunt 2038 | -6/Cetus | Murdered A7 2039 | -6/Cetus | Extracted ID and sensor layout for unrecognized location from A7's data core 2052 | -6/Cetus | Found Prototype Protection 2062 | -6/Cetus | Manufactured an Enhanced Grunt 2083 | -6/Cetus | Discovered new exit (range 16) 2087 | -6/Cetus | Manufactured an Enhanced Grunt 2097 | -6/Cetus | Identified exit to Archives 2112 | -6/Cetus | Manufactured an Enhanced Grunt 2232 | -6/Cetus | Spotted Cetus Guard 2233 | -6/Cetus | Spotted Cetus Guard 2237 | -6/Cetus | Spotted Cetus Guard 2255 | -6/Cetus | Allies destroyed Cetus Guard 2259 | -6/Cetus | Spotted Cetus Guard 2285 | -6/Cetus | Discovered new exit (range 15) 2290 | -6/Cetus | Met Revision 17 2335 | -6/Cetus | Entered Archives 2335 | -6/Archives | Accompanied by 4 allies 2363 | -6/Archives | Core integrity fell below 20% 2392 | -6/Archives | Lost 3 allies 2408 | -6/Archives | Discovered new exit (range 13) 2499 | -6/Archives | Discovered new exit (range 16) 2520 | -6/Archives | Identified Med. Regenerative Plating 2565 | -6/Archives | Identified exit to Factory 2565 | -6/Archives | Entered Factory 2565 | -5/Factory | Evolved 2 slots: Utility x2 2684 | -5/Factory | Build established: Scavenger-Mutant 2713 | -5/Factory | Identified exit to Upper Caves 2774 | -5/Factory | Entered Upper Caves 3550 | -5/Upper Caves | Attracted the attention of an 0b10 checkpoint 3588 | -5/Upper Caves | Learned 4 Factory zone layouts 3636 | -5/Upper Caves | Discovered new exit (range 11) 3641 | -5/Upper Caves | Identified exit to Upper Caves 3642 | -5/Upper Caves | Entered another Upper Caves area 3833 | -5/Upper Caves | Identified exit to Zhirov 3924 | -5/Upper Caves | Identified exit to Factory 3987 | -5/Upper Caves | Entered Zhirov 3987 | -5/Zhirov | Discovered new exit (range 3) 3997 | -5/Zhirov | Met Zhirov 4009 | -5/Zhirov | Learned location of Quarantine (-2) 4009 | -5/Zhirov | Learned location of Testing (-3) 4009 | -5/Zhirov | Learned location of Command (-1) 4014 | -5/Zhirov | Zhirov requested help retrieving the SGEMP Prototype 4022 | -5/Zhirov | Found Alien Artifact 4022 | -5/Zhirov | Identified Integrated Reactor 4022 | -5/Zhirov | Installed Integrated Reactor, increased core energy generation (+10) 4032 | -5/Zhirov | Found Alien Artifact 4097 | -5/Zhirov | Identified exit to Proximity Caves 4098 | -5/Zhirov | Entered Proximity Caves 4099 | -4/Proximity Caves | Learned Research terminal intel 4283 | -4/Proximity Caves | Discovered exit to Factory (range 7) 4373 | -4/Proximity Caves | Entered Factory 4373 | -4/Factory | Evolved 2 slots: Utility x2 4382 | -4/Factory | Identified exit to Upper Caves 4382 | -4/Factory | Identified exit to Armory 4450 | -4/Factory | Found Unknown Device 4450 | -4/Factory | Identified Quantum Capacitor 4704 | -4/Factory | Lost 4 parts (3n1w) 4770 | -4/Factory | Entered Upper Caves 4775 | -4/Upper Caves | Entered an active Warlord outpost 4777 | -4/Upper Caves | Learned 8 Factory zone layouts 4933 | -4/Upper Caves | Learned Research security intel 5430 | -4/Upper Caves | Build established: Hacker-Sprinter 5873 | -4/Upper Caves | Learned Research security intel 5906 | -4/Upper Caves | Discovered new exit (range 11) 5945 | -4/Upper Caves | Identified exit to Upper Caves 5945 | -4/Upper Caves | Entered another Upper Caves area 5960 | -4/Upper Caves | Attracted the attention of an 0b10 checkpoint 6035 | -4/Upper Caves | Encountered a Warlord checkpoint 6176 | -4/Upper Caves | Discovered new exit (range 6) 6178 | -4/Upper Caves | Identified exit to Warlord 6431 | -4/Upper Caves | Entered Warlord 6576 | -4/Warlord | Found Prototype Device 6576 | -4/Warlord | Identified Thermal Barrier 6581 | -4/Warlord | Found Prototype Device 6581 | -4/Warlord | Identified Exp. Phase Shifter 6624 | -4/Warlord | Warlord's base attacked by MAIN.C 6645 | -4/Warlord | Met Warlord 6653 | -4/Warlord | Found Prototype Device 6696 | -4/Warlord | Found Prototype Reactor 6701 | -4/Warlord | Found Prototype Hackware 6738 | -4/Warlord | Found Prototype Energy Cannon 6738 | -4/Warlord | Identified Vortex Driver 6741 | -4/Warlord | Met EX-DEC 6741 | -4/Warlord | Found Prototype Energy Cannon 6835 | -4/Warlord | Warlord forces counterattacked 6871 | -4/Warlord | Spotted B-90 Cyclops 6883 | -4/Warlord | Spotted B-86 Titan 6932 | -4/Warlord | Identified Wardrone Bay 6939 | -4/Warlord | Lost 10 allies 6988 | -4/Warlord | Spotted Executioner 7026 | -4/Warlord | Discovered new exit (range 12) 7038 | -4/Warlord | Entered Proximity Caves 7065 | -3/Proximity Caves | Lost 17 allies 7113 | -3/Proximity Caves | P-80 Master assimilated allied C5-FK2(c) 7180 | -3/Proximity Caves | Discovered new exit (range 93) 7210 | -3/Proximity Caves | Build established: Scavenger-Mutant 7308 | -3/Proximity Caves | Spotted B-86 Titan 7316 | -3/Proximity Caves | Received a Behemoth hack from an annoying Tinkerer 7318 | -3/Proximity Caves | Allies destroyed B-86 Titan 7397 | -3/Proximity Caves | Attracted the attention of an 0b10 base 7458 | -3/Proximity Caves | Entered Research 7458 | -3/Research | Evolved 2 slots: Power x1, Utility x1 7460 | -3/Research | Loaded intel: 20 terminal locations 7558 | -3/Research | Identified Vortex Chain Reactor 7658 | -3/Research | Revision forces began assault on 0b10 7679 | -3/Research | Met up with Revision 17++ 8132 | -3/Research | Identified exit to Research 8158 | -3/Research | Research terminal network offline 8224 | -3/Research | Spotted Striker 8321 | -3/Research | Allies destroyed B-86 Titan 8490 | -3/Research | Allies destroyed Striker 8579 | -3/Research | Discovered new exit (range 104) 8658 | -3/Research | Spotted Executioner 8658 | -3/Research | Spotted Striker 8673 | -3/Research | Entered another Research area 8673 | -2/Research | Warlord forces began assault on 0b10 8673 | -2/Research | Evolved 2 slots: Weapon x2 8774 | -2/Research | Identified exit to Access 8783 | -2/Research | Research machine network offline 8981 | -2/Research | Build established: Scavenger-Tank 8986 | -2/Research | Allies destroyed B-90 Cyclops 9108 | -2/Research | Borebot progress halted 9313 | -2/Research | Borebot progress halted 9332 | -2/Research | Spotted Striker 9333 | -2/Research | Allies destroyed Striker 9389 | -2/Research | Discovered new exit (range 84) 9429 | -2/Research | Met up with Warlord 9447 | -2/Research | Lost 4 allies 9613 | -2/Research | Spotted Striker 9615 | -2/Research | Spotted Striker 9844 | -2/Research | Borebot progress halted 9868 | -2/Research | Lost 3 allies 9945 | -2/Research | Spotted Striker 9949 | -2/Research | Entered Quarantine 9972 | -2/Quarantine | Lost 5 allies 9997 | -2/Quarantine | Garrison activated, responded to threat 10047 | -2/Quarantine | Found Alien Artifact 10047 | -2/Quarantine | Identified Core Reset Matrix 10047 | -2/Quarantine | Identified Transdimensional Reconstructor 10047 | -2/Quarantine | Used Core Reset Matrix 10051 | -2/Quarantine | Detected hypermatrix surge 10051 | -2/Quarantine | Sensed 15 artifacts in vicinity 10069 | -2/Quarantine | Lost 3 allies 10439 | -2/Quarantine | Discovered exit to Access (range 30) 10457 | -2/Quarantine | Found Core Stripper 10477 | -2/Quarantine | Spotted Alpha 7 10478 | -2/Quarantine | Destroyed Alpha 7 10593 | -2/Quarantine | Found Subatomic Replicator 10758 | -2/Quarantine | Entered Access 10758 | -1/Access | Evolved 2 slots: Weapon x2 10765 | -1/Access | Build established: Alien-Mutant 10829 | -1/Access | Identified System Mapper 10831 | -1/Access | Identified exit to Command 10919 | -1/Access | Garrison activated, responded to threat 11139 | -1/Access | Spotted B-99 Colossus 11233 | -1/Access | Allies destroyed B-99 Colossus 11496 | -1/Access | Entered Command 11524 | -1/Command | Build established: Hacker-Bomber 11603 | -1/Command | Disengaged cave seal 11615 | -1/Command | Welcomed Warlord to Command 11638 | -1/Command | Disengaged cave seal 11638 | -1/Command | Derelicts emerged from the dark tunnel 11678 | -1/Command | P-80 Master assimilated allied F6-PP8(l) 11834 | -1/Command | Lost 17 allies 11844 | -1/Command | Warlord commented on Warlord statues 11857 | -1/Command | Spotted M Guard 11857 | -1/Command | Spotted M Guard 11857 | -1/Command | Combat Programmer assimilated allied NM-ANF(L) 11862 | -1/Command | Spotted NM-ANF(L) 11862 | -1/Command | Spotted Combat Programmer 11863 | -1/Command | Spotted Combat Programmer 11864 | -1/Command | Identified BFG-9k Vortex Edition 11868 | -1/Command | Destroyed Combat Programmer 11890 | -1/Command | Destroyed M Guard 11890 | -1/Command | All MAIN.C guards destroyed 11904 | -1/Command | Found Prototype Launcher 11924 | -1/Command | Lost 7 allies 11942 | -1/Command | Spotted X7-W5B(g) 11986 | -1/Command | Met MAIN.C 11993 | -1/Command | System corruption reached 10% 11996 | -1/Command | Warlord shut down involuntarily 12050 | -1/Command | Self-destructed Last Messages --------------- So if you wouldn't mind, it's time to surrender. Warlord: Your time has come, MAIN.C. To put that in terms you might better understand, I calculate a 100.01% chance of your termination here and now! MAIN.C: Well if it isn't my old friend Warlord, come to play... On the contrary, I think it's time for you to join your brothers, ZY-L1N. Thank you for your service. 11992_ Exp. Weapon Shielding destroyed. Warlord shuts down. 12001_ System corrupted: Component data lost. 12004_ Door malfunctions. 12025_ System corrupted: Matter fused (-10). 12032_ BFG-9k Vortex Edition destroyed. 12033_ Identified Graviton Cannon. 12036_ Nova Cannon destroyed. 12043_ Biometal Leg destroyed. 12044_ System corrupted: Graviton Cannon fused. 12050_ Vortex Chain Reactor destroyed. Map ----- +----------------------------------------------------+ | ?????????????????????????????????????????????????? | | ?????????????????????????????????????????????????? | | ?????????????????????????????????????????????????? | | ?????????????????????????????????????????????????? | | ?????????????????????????????????????????????????? | | ?????????????????????????????????????????????????? | | ?????????????????????????????????????????????????? | | ?????????????????????????????????????????????????? | | ?????????????????????????????????????????????????? | | ?????????????????????????????????????????????????? | | ?????????????????????????????????????????????????? | | ?????????????????????????????????????????????????? | | ?????????????????????????????????????????????????? | | ?????????????????????????????????????????????????? | | ?????????????????????????????????????????????????? | | ?????????????????????????????????????????????????? | | ?????????????????????????????????????????????????? | | ?????????????????????????????????????????????????? | | ?????????????????????????????????????????????????? | | ?????????????????????????????????????????????????? | | ?????????#############?????????????????????????? | | ???????? """" #?????????????????????????? | | ???????? "" #????????????????????????? | | ???????? "" #######################??# | | ????????""" / #??# | | ????????""" / @W #??# | | ???????""" % ; #??# | | ???????""" MMM ################### #??# | | ????????"" MMM #?????????????????# #??? | | ????????"" %MMM #?????????????????# ##?### | | ????????" ""#?????????????????# #?# | | ???????"" """""""#?????????????????#/ #### | | ??????? """""""""#?????????????????# | | ??????? """""""""""#?????????????????# | | ??????? ?????? " #?????????????????# | | ???????????????????????????????????????# | | ???????????????????????????????????????# | | ???????????????????????????????????????# ## | | ???????????????????????????????????????###### # | | ????????????????????????????????????????????## ## | | ?????????????????????????????????????????????## ? | | ??????????????????????????????????????????????# | | ??????????????????????????????????????????????# | | ??????????????????????????????????????????????# | | ??????????????????????????????????????????????# | | ??????????????????????????????????????????????# | | ??????????????????????????????????????????????# | | ??????????????????????????????????????????????# | | ??????????????????????????????????????????????? | | ??????????????????????????????????????????????? | +----------------------------------------------------+ Best States ------------- Heat Dissipation 90 Coolant Potential 120 Energy Generation 65 Energy Capacity 700 Matter Stores 300 Matter Capacity 300 Sight Range 20 Robot Scan Range 15 Terrain Scan Range 24 Terrain Scan Density 110 Additional Mass Support 16 Armor Coverage 450 Utility Shielding 90 Weapon Shielding 90 Point Defense Rating 240 Evasion (%) 76 Melee Accuracy 12 Launcher Accuracy 30 Recoil Reduction 1 Offensive Hacking 38 Defensive Hacking 14 Trap Extractor Capacity 8 Item Schematics ----------------- None Robot Schematics ------------------ None Fabricated ------------ Nothing Repaired ---------- Nothing Studied --------- None Alien Tech Used ----------------- Integrated Reactor Core Reset Matrix Core Stripper Achievements -------------- Betrayal Most Foul Chop Chop The Slayer Has Control Challenges ------------ None Game ------ Seed ClaymoresMolecularSpiker Manual? 0 Play Time 02:47:03 Cumulative 355.4 hours Start 2025.11.11 @ 21:39:07 End 2025.11.12 @ 12:20:49 Sessions 3 Manual Loads 0 Difficulty Rogue Special Mode None Game No. 249 Rogue 249 Adventurer 0 Explorer 0 Win Type - Total 22 Types 9/0/7/1/1/0/1/1/1/1 Lore% 82 Gallery% 78 Achievement% 64 Wizard Run 0 Options --------- Layout 1 ASCII 0 Keyboard 0 Movement Mouse Keybinds 0 Fullscreen 2 Font 24/Smallcaps Map View 50x35 Zoom Use 0% Tactical HUD 1 Map Filters NONE Filters NONE Steam 1 RUN: 1c3a6a3b-8bed-428d-890a-a4aebedaf142